bitfinex/quotes_SOLUSD_20251115
["timestamp","ask_amount","ask_price","bid_price","bid_amount"]
[1763236145998,0.09999974,141.9,141.88,7.75820975]
[1763236147676,104.29999974,141.91,141.88,7.75820975]
[1763236147984,104.29999974,141.91,141.89,0.71]
[1763236148995,104.29999974,141.91,141.89,7.7575802]
[1763236149200,0.09999974,141.9,141.89,7.7575802]
[1763236151200,0.09999974,141.9,141.89,28.54530662]
[1763236153809,0.09999974,141.9,141.89,7.7575802]
[1763236154409,0.09999974,141.9,141.89,28.70176429]
[1763236155405,104.29999974,141.91,141.89,28.70176429]
[1763236155708,104.2,141.91,141.9,0.68]
[1763236156810,0.09999974,141.92,141.89,27.99176429]
[1763236157012,0.09999974,141.92,141.89,46.29104683]
[1763236157612,0.09999974,141.92,141.9,0.68]
[1763236159720,0.09999974,141.92,141.9,7.727106]
[1763236161316,0.09999974,141.91,141.9,7.727106]
[1763236161514,0.09999974,141.91,141.9,7.047106]
[1763236161710,0.09999974,141.92,141.9,7.047106]
[1763236162017,0.09999974,141.92,141.9,7.727106]
[1763236162815,0.09999974,141.91,141.9,7.727106]
[1763236163121,7.14590592,141.93,141.9,7.727106]
[1763236163427,0.09999974,141.91,141.9,7.727106]
[1763236163613,0.09999974,141.91,141.9,7.047106]
[1763236164319,7.14590592,141.93,141.9,7.727106]
[1763236164614,0.09999974,141.91,141.9,7.727106]
[1763236165015,0.09999974,141.92,141.9,7.047106]
[1763236165224,0.09999974,141.92,141.9,7.727106]
[1763236167225,0.09999974,141.92,141.9,7.047106]
[1763236168213,0.09999974,141.92,141.9,7.727106]
[1763236173132,0.09999974,141.92,141.9,7.047106]
[1763236173329,0.09999974,141.92,141.9,7.727106]
[1763236174317,0.09999974,141.92,141.91,0.68]
[1763236174825,0.09999974,141.92,141.9,7.727106]
[1763236175612,0.09999974,141.92,141.91,0.68]
[1763236176325,0.09999974,141.92,141.9,7.047106]
[1763236176625,0.09999974,141.92,141.91,0.68]
[1763236177519,0.09999974,141.92,141.9,7.727106]
[1763236179926,0.09999974,141.92,141.91,0.68]
[1763236181005,0.09999974,141.92,141.9,7.727106]
[1763236182420,0.09999974,141.92,141.91,0.68]
[1763236184339,0.09999974,141.92,141.9,7.727106]
[1763236188328,0.09999974,141.92,141.91,0.68]
[1763236190845,0.09999974,141.92,141.9,7.727106]
[1763236191244,0.09999974,141.92,141.91,0.68]
[1763236191850,0.09999974,141.92,141.9,7.727106]
[1763236194145,0.09999974,141.92,141.91,0.68]
[1763236200958,0.09999974,141.93,141.91,0.68]
[1763236201270,0.09999974,141.92,141.91,0.68]
[1763236202465,0.09999974,141.92,141.87,100.0]
[1763236202638,0.09999974,141.87,141.86,16.92]
[1763236202844,3.00751447,141.87,141.86,16.92]
[1763236203340,0.09999974,141.87,141.86,16.92]
[1763236203739,3.00751447,141.87,141.86,16.92]
[1763236211663,3.00751447,141.87,141.86,17.6]
[1763236213765,3.00751447,141.87,141.86,16.92]
[1763236214145,16.92,141.89,141.86,27.41882769]
[1763236214359,0.09999974,141.9,141.87,0.71]
[1763236215477,0.09999974,141.9,141.88,7.04820975]
[1763236215974,0.09999974,141.9,141.89,0.71]
[1763236217251,0.09999974,141.9,141.89,7.75771301]
[1763236217768,0.09999974,141.91,141.89,7.75771301]
[1763236217968,0.09999974,141.9,141.89,7.75771301]
[1763236219967,0.09999974,141.91,141.89,7.75771301]
[1763236220169,0.09999974,141.91,141.9,0.71]
[1763236220475,0.09999974,141.91,141.89,0.71]
[1763236220989,0.09999974,141.91,141.9,0.71]
[1763236227467,0.09999974,141.91,141.88,7.04820975]
[1763236227670,0.09999974,141.9,141.88,7.04820975]
[1763236227877,0.09999974,141.9,141.89,0.71]
[1763236230283,0.09999974,141.9,141.89,7.75771301]
[1763236230756,0.09999974,141.91,141.89,7.75771301]
[1763236230952,0.09999974,141.91,141.9,0.71]
[1763236234478,0.09999974,141.91,141.89,7.04771301]
[1763236234663,0.09999974,141.91,141.89,7.75771301]
[1763236235582,0.09999974,141.91,141.9,0.71]
[1763236236682,0.09999974,141.92,141.9,0.71]
[1763236236876,0.09999974,141.91,141.9,0.71]
[1763236238776,0.09999974,141.91,141.89,0.71]
[1763236238966,3.00751447,141.9,141.86,16.92]
[1763236239169,0.09999974,141.87,141.86,16.92]
[1763236241576,10.05579681,141.88,141.86,16.92]
[1763236241776,0.09999974,141.87,141.86,16.92]
[1763236245881,3.00751447,141.87,141.86,16.92]
[1763236246396,0.09999974,141.87,141.86,16.92]
[1763236249104,0.09999974,141.87,141.85,78.46556534]
[1763236250275,10.05581146,141.88,141.85,78.46556534]
[1763236250476,0.09999974,141.87,141.85,78.46556534]
[1763236250697,0.09999974,141.88,141.85,78.46556534]
[1763236250906,0.09999974,141.88,141.86,0.69]
[1763236256626,0.09999974,141.89,141.86,57.73908185]
[1763236257000,0.09999974,141.88,141.87,0.69]
[1763236258224,0.09999974,141.87,141.85,71.41591187]
[1763236258523,0.09999974,141.86,141.85,71.41591187]
[1763236262022,0.09999974,141.86,141.85,50.0]
[1763236262224,0.09999974,141.85,141.84,21.45283115]
[1763236262426,0.09999974,141.84,141.82,0.69]
[1763236262625,0.09999974,141.84,141.81,66.84016059]
[1763236262822,0.09999974,141.84,141.83,0.69]
[1763236266938,0.09999974,141.85,141.83,57.74069449]
[1763236267420,0.09999974,141.85,141.84,0.69]
[1763236270439,106.16209247,141.86,141.84,0.69]
[1763236270742,0.09999974,141.85,141.84,0.69]
[1763236281948,113.21131084,141.86,141.84,0.69]
[1763236282150,0.09999974,141.85,141.84,0.69]
[1763236282824,113.21131084,141.86,141.84,0.69]
[1763236283022,0.09999974,141.85,141.84,0.69]
[1763236286456,106.16209247,141.86,141.84,0.69]
[1763236286656,0.09999974,141.85,141.84,0.69]
[1763236290756,106.16209247,141.86,141.84,0.69]
[1763236290924,0.09999974,141.85,141.84,0.69]
[1763236292660,0.09999974,141.85,141.84,50.69]
[1763236293458,104.29999974,141.86,141.84,50.69]
[1763236293634,104.29999974,141.86,141.85,0.72]
[1763236295566,104.2,141.86,141.85,7.76970038]
[1763236295857,0.09999974,141.87,141.85,57.76970038]
[1763236296154,0.09999974,141.87,141.86,0.72]
[1763236296557,0.09999974,141.87,141.86,50.72]
[1763236297143,0.09999974,141.87,141.86,57.76920344]
[1763236297554,0.09999974,141.89,141.86,57.76920344]
[1763236297754,0.09999974,141.88,141.87,0.72]
[1763236298341,0.09999974,141.9,141.88,50.0]
[1763236298539,0.09999974,141.9,141.89,0.72]
[1763236300960,0.09999974,141.9,141.89,7.76771301]
[1763236301741,0.09999974,141.92,141.9,50.0]
[1763236301942,0.09999974,141.95,141.92,50.0]
[1763236302237,0.09999974,141.94,141.92,50.0]
[1763236302543,0.09999974,141.94,141.93,0.72]
[1763236305870,0.09999974,141.92,141.91,50.0]
[1763236306374,0.09999974,141.92,141.91,50.7]
[1763236307954,0.09999974,141.92,141.91,57.74671975]
[1763236309972,0.2,142.0,141.93,100.0]
[1763236310162,1.86209273,141.97,141.94,0.7]
[1763236310370,1.86209273,141.96,141.93,50.7]
[1763236311078,1.86209273,141.94,141.91,7.74671975]
[1763236311277,1.86209273,141.94,141.91,0.7]
[1763236312153,8.9074758,141.94,141.91,0.7]
[1763236312380,1.86209273,141.93,141.9,50.7]
[1763236312861,1.86209273,141.93,141.9,50.0]
[1763236313178,1.86209273,141.93,141.91,0.7]
[1763236313369,1.86209273,141.93,141.9,50.7]
[1763236313569,1.86209273,141.93,141.9,0.7]
[1763236313966,1.86209273,141.92,141.88,50.7]
[1763236314165,8.90844558,141.92,141.89,0.7]
[1763236315381,8.90799086,141.93,141.89,57.74760145]
[1763236315782,1.86209273,141.93,141.9,0.7]
[1763236316389,1.86209273,141.93,141.9,7.7471968]
[1763236316564,1.86209273,141.93,141.91,0.7]
[1763236316761,104.2,141.95,141.91,50.7]
[1763236317283,9.95126179,141.96,141.92,0.7]
[1763236318281,2.90684976,141.95,141.92,0.7]
[1763236319168,2.90684976,141.94,141.92,0.7]
[1763236319363,2.90684976,141.95,141.92,0.7]
[1763236320782,9.95166271,141.95,141.92,0.7]
[1763236321308,2.90684976,141.93,141.9,0.7]
[1763236321479,2.90684976,141.93,141.88,77.40878091]
[1763236321785,2.90684976,141.93,141.9,0.7]
[1763236322173,2.90684976,141.94,141.9,0.7]
[1763236322373,104.2,141.95,141.91,100.0]
[1763236322573,104.2,141.95,141.92,7.04622322]
[1763236322765,104.2,141.95,141.92,7.74622322]
[1763236322966,114.15162131,141.95,141.93,0.7]
[1763236325577,104.2,141.95,141.93,0.7]
[1763236326069,104.2,141.95,141.93,7.74572398]
[1763236326469,104.2,141.95,141.94,0.7]
[1763236327668,114.25177836,141.95,141.91,50.7]
[1763236327870,2.90684976,141.92,141.91,50.7]
[1763236328184,2.90684976,141.92,141.91,0.7]
[1763236328390,2.90684976,141.93,141.91,0.7]
[1763236329995,2.90684976,141.94,141.91,0.7]
[1763236331507,22.6512,141.91,141.87,16.92]
[1763236331686,2.90684976,141.88,141.87,16.92]
[1763236332185,25.65804976,141.88,141.87,16.92]
[1763236332772,46.82729789,141.88,141.87,16.92]
[1763236333380,53.87550764,141.88,141.87,16.92]
[1763236337773,106.73708079,141.88,141.79,57.15232099]
[1763236337975,2.90684976,141.83,141.8,9.08]
[1763236338175,2.90684976,141.83,141.8,29.71378519]
[1763236338402,2.90684976,141.83,141.81,0.7]
[1763236338574,2.90684976,141.83,141.82,8.38]
[1763236339203,9.95754425,141.83,141.82,9.08]
[1763236340203,2.90684976,141.83,141.82,9.08]
[1763236340771,9.95754425,141.83,141.82,9.08]
[1763236344205,24.0790859,141.84,141.82,9.08]
[1763236344506,2.90684976,141.84,141.83,0.7]
[1763236344688,9.95707313,141.84,141.83,0.7]
[1763236345594,104.2,141.83,141.79,0.8]
[1763236345789,104.2,141.83,141.8,9.08]
[1763236346106,2.90684976,141.81,141.8,9.08]
[1763236347416,9.95853863,141.81,141.8,9.08]
[1763236350185,7.0514116,141.82,141.8,9.08]
[1763236350408,9.95826136,141.82,141.8,9.08]
[1763236350607,2.90684976,141.81,141.8,9.08]
[1763236351313,9.95853863,141.81,141.8,9.08]
[1763236353713,2.90684976,141.82,141.8,9.08]
[1763236353907,2.90684976,141.82,141.8,8.38]
[1763236354222,2.90684976,141.82,141.81,0.7]
[1763236354414,2.90684976,141.82,141.8,8.38]
[1763236354614,2.90684976,141.81,141.8,9.08]
[1763236359520,2.90684976,141.82,141.8,9.08]
[1763236359718,2.90684976,141.82,141.81,0.7]
[1763236361211,2.90684976,141.82,141.8,9.08]
[1763236361410,2.90684976,141.81,141.8,8.38]
[1763236362000,2.90684976,141.81,141.8,9.08]
[1763236362524,9.95809824,141.82,141.8,9.08]
[1763236362727,9.95809824,141.82,141.81,0.7]
[1763236365129,2.90684976,141.82,141.81,0.7]
[1763236374621,114.15778286,141.83,141.81,0.7]
[1763236374829,107.10684976,141.83,141.82,8.38]
[1763236375226,107.10684976,141.83,141.82,9.1]
[1763236375227,104.2,141.83,141.82,9.1]
[1763236375851,114.15626217,141.86,141.82,59.1]
[1763236376024,114.15626217,141.86,141.83,0.72]
[1763236376225,114.15626217,141.86,141.84,8.38]
[1763236376830,114.15626217,141.86,141.85,0.72]
[1763236377030,114.15626217,141.86,141.84,9.1]
[1763236378835,113.1124708,141.86,141.84,9.1]
[1763236382548,1.86305839,141.85,141.84,9.1]
[1763236390344,106.06305839,141.86,141.84,9.1]
[1763236390543,1.86305839,141.89,141.85,0.72]
[1763236390852,1.86305839,141.88,141.86,8.38]
[1763236391755,1.86305839,141.88,141.87,0.72]
[1763236394264,7.04798947,141.89,141.87,0.72]
[1763236394464,8.91104786,141.89,141.88,8.38]
[1763236395662,7.04798947,141.89,141.88,8.38]
[1763236395849,8.91104786,141.89,141.88,8.38]
[1763236400469,8.91104786,141.89,141.88,9.06]
[1763236403372,8.91104786,141.89,141.88,8.38]
[1763236403774,8.91104786,141.89,141.88,9.06]
[1763236405479,7.04798947,141.89,141.88,9.06]
[1763236414179,104.2,141.9,141.88,9.06]
[1763236414478,104.2,141.9,141.89,0.68]
[1763236423590,104.2,141.9,141.89,7.72771301]
[1763236423892,111.24590402,141.93,141.89,7.72771301]
[1763236424099,106.06305839,141.93,141.9,59.1]
[1763236424481,106.06305839,141.93,141.91,0.72]
[1763236424800,104.2,141.93,141.92,8.38]
[1763236425090,104.2,141.93,141.92,9.1]
[1763236426299,8.90802942,141.95,141.92,16.14622322]
[1763236426595,7.04497103,141.95,141.93,0.72]
[1763236426899,7.04497103,141.95,141.94,8.38]
[1763236427195,7.04497103,141.95,141.94,9.1]
[1763236427780,1.86305839,141.96,141.94,9.1]
[1763236427988,1.86305839,141.96,141.95,0.72]
[1763236428602,31.55823907,141.97,141.95,0.72]
[1763236428783,8.90703907,141.97,141.96,8.36]
[1763236432100,10.87009746,141.97,141.92,0.72]
[1763236432298,7.04473406,141.95,141.93,8.36]
[1763236432778,7.14473406,141.95,141.93,8.36]
[1763236432980,7.04473406,141.95,141.93,8.36]
[1763236433180,28.20054661,141.95,141.93,8.36]
[1763236433385,111.24473406,141.95,141.93,8.36]
[1763236433705,1.86305839,141.94,141.93,8.36]
[1763236434399,8.90828876,141.94,141.93,8.36]
[1763236437713,7.04523037,141.94,141.93,8.36]
[1763236437896,8.90828876,141.94,141.93,8.36]
[1763236439096,9.00828876,141.94,141.93,8.36]
[1763236439602,30.16708552,141.94,141.93,8.36]
[1763236440887,31.21309586,141.94,141.93,8.36]
[1763236443608,106.70352369,141.94,141.87,0.72]
[1763236443793,2.90906873,141.88,141.87,0.72]
[1763236443993,2.90906873,141.88,141.87,9.08]
[1763236444307,2.90906873,141.9,141.87,59.08]
[1763236444519,2.90906873,141.91,141.88,0.72]
[1763236444811,24.06935792,141.92,141.88,0.72]
[1763236445410,31.11604186,141.92,141.88,7.76805626]
[1763236445600,31.11604186,141.92,141.89,0.72]
[1763236445803,31.11604186,141.92,141.9,8.36]
[1763236446319,31.11604186,141.92,141.9,9.08]
[1763236449613,31.11604186,141.92,141.91,0.72]
[1763236450384,9.95575267,141.92,141.91,0.72]
[1763236451130,119.60584163,141.93,141.91,0.72]
[1763236451511,9.95529195,141.92,141.91,0.72]
[1763236453622,7.04622322,141.92,141.91,0.72]
[1763236453919,9.95529195,141.92,141.91,0.72]
[1763236454297,7.04622322,141.92,141.91,0.72]
[1763236454491,9.95529195,141.92,141.91,0.72]
[1763236455718,2.90906873,141.92,141.91,0.72]
[1763236457418,9.95529195,141.92,141.91,0.72]
[1763236460017,9.95529195,141.92,141.9,8.36]
[1763236460018,10.05529195,141.92,141.9,8.36]
[1763236460196,3.00906873,141.91,141.9,8.36]
[1763236460518,107.20906873,141.91,141.9,8.36]
[1763236460898,128.37383644,141.91,141.9,8.36]
[1763236461318,128.27383644,141.91,141.9,8.36]
[1763236461727,135.32055619,141.91,141.9,8.36]
[1763236468430,135.32055619,141.91,141.9,9.03]
[1763236469854,125.36476771,141.91,141.9,9.03]
[1763236470156,2.90906873,141.92,141.9,9.03]
[1763236470327,2.90906873,141.91,141.9,8.36]
[1763236471340,18.31578848,141.91,141.9,8.36]
[1763236471717,18.31578848,141.91,141.9,9.03]
[1763236474244,2.90906873,141.91,141.9,9.03]
[1763236479563,9.95578848,141.91,141.9,8.36]
[1763236480463,9.95578848,141.91,141.9,9.03]
[1763236481853,9.95578848,141.91,141.9,8.36]
[1763236482058,10.05578848,141.91,141.9,8.36]
[1763236482240,9.95578848,141.91,141.9,8.36]
[1763236483161,104.2,141.9,141.86,0.68]
[1763236483350,2.90906873,141.87,141.86,0.68]
[1763236483652,2.90906873,141.87,141.86,9.04]
[1763236484044,9.95777529,141.87,141.86,9.04]
[1763236488565,2.90906873,141.87,141.86,9.04]
[1763236490265,9.95777529,141.87,141.86,9.04]
[1763236491465,2.90906873,141.87,141.86,9.04]
[1763236491758,9.95777529,141.87,141.86,9.04]
[1763236492761,104.2,141.88,141.86,9.04]
[1763236492942,2.90906873,141.87,141.86,8.36]
[1763236493441,2.90906873,141.87,141.86,9.04]
[1763236495748,111.24838856,141.88,141.86,9.04]
[1763236495958,2.90906873,141.87,141.86,8.36]
[1763236496568,2.90906873,141.87,141.86,9.04]
[1763236499871,104.2,141.88,141.86,9.04]
[1763236500173,2.90906873,141.87,141.86,8.36]
[1763236500947,1.86264666,141.87,141.86,8.36]
[1763236501157,1.86264666,141.87,141.86,9.04]
[1763236503349,8.91135322,141.87,141.86,9.04]
[1763236503672,1.86264666,141.87,141.86,9.04]
[1763236505865,8.91135322,141.87,141.86,9.04]
[1763236506258,8.91135322,141.87,141.86,8.36]
[1763236506259,9.01135322,141.87,141.86,8.36]
[1763236506783,52.83180135,141.87,141.86,8.36]
[1763236507984,52.73180135,141.87,141.86,8.36]
[1763236508981,52.83180135,141.87,141.86,8.36]
[1763236511387,52.73180135,141.87,141.86,8.36]
[1763236511872,52.73180135,141.87,141.86,9.05]
[1763236511873,31.56255322,141.87,141.86,9.05]
[1763236512688,8.91135322,141.87,141.86,9.05]
[1763236513382,7.04870656,141.87,141.86,9.05]
[1763236513582,8.91135322,141.87,141.86,9.05]
[1763236513987,7.04870656,141.87,141.86,9.05]
[1763236514165,1.86264666,141.9,141.86,9.05]
[1763236514358,1.86264666,141.89,141.87,0.7]
[1763236514664,1.86264666,141.88,141.87,0.7]
[1763236517867,1.86264666,141.89,141.87,0.7]
[1763236518177,1.86264666,141.89,141.88,8.36]
[1763236518487,8.91009735,141.9,141.88,8.36]
[1763236518672,8.91009735,141.9,141.89,0.7]
[1763236521793,1.86264666,141.9,141.89,0.7]
[1763236522999,1.86264666,141.91,141.89,0.7]
[1763236523182,1.86264666,141.91,141.9,8.36]
[1763236523680,1.86264666,141.91,141.9,9.06]
[1763236524182,104.2,141.93,141.9,16.10718591]
[1763236524384,1.86264666,141.92,141.91,0.7]
[1763236524572,1.86264666,141.92,141.91,9.06]
[1763236526991,106.06264666,141.93,141.91,9.06]
[1763236527192,106.06264666,141.93,141.92,0.7]
[1763236533304,104.2,141.93,141.92,0.7]
[1763236533488,106.06264666,141.93,141.92,0.7]
[1763236533903,113.20837342,141.93,141.87,100.0]
[1763236534104,1.86264666,141.9,141.88,0.7]
[1763236534278,1.86264666,141.9,141.88,9.06]
[1763236534480,1.86264666,141.89,141.88,8.36]
[1763236534977,1.86264666,141.89,141.88,9.06]
[1763236536603,8.91035967,141.89,141.88,9.06]
[1763236538200,1.86264666,141.89,141.88,9.06]
[1763236538411,8.91035967,141.89,141.88,8.36]
[1763236538913,8.91035967,141.89,141.88,9.06]
[1763236543115,1.86264666,141.89,141.88,9.06]
[1763236544594,104.2,141.91,141.88,9.06]
[1763236544912,1.86264666,141.89,141.88,9.04]
[1763236549203,1.86264666,141.89,141.88,0.68]
[1763236549405,1.86264666,141.89,141.88,9.04]
[1763236551313,111.24746471,141.9,141.88,9.04]
[1763236551506,1.86264666,141.89,141.88,8.36]
[1763236552515,111.24746471,141.9,141.88,9.04]
[1763236552694,1.86264666,141.89,141.88,8.36]
[1763236554918,1.86264666,141.89,141.88,9.04]
[1763236555226,8.91035967,141.89,141.86,0.68]
[1763236555386,1.86264666,141.87,141.86,0.68]
[1763236555586,1.86264666,141.87,141.86,9.04]
[1763236559392,8.91135322,141.87,141.86,9.04]
[1763236561032,8.91135322,141.87,141.8,50.0]
[1763236561033,49.28431962,141.87,141.8,50.0]
[1763236561211,47.42167296,141.87,141.83,0.68]
[1763236561391,22.6512,141.85,141.84,8.36]
[1763236561892,22.6512,141.85,141.84,9.04]
[1763236562512,24.51384666,141.85,141.84,9.04]
[1763236562918,32.61325091,141.85,141.84,9.04]
[1763236564021,35.52560144,141.85,141.84,9.04]
[1763236565522,35.52560144,141.85,141.84,8.36]
[1763236565899,35.62560144,141.85,141.84,8.36]
[1763236566331,53.2498524,141.85,141.84,8.36]
[1763236566534,2.91235053,141.84,141.82,8.36]
[1763236566723,7.05069449,141.83,141.82,8.36]
[1763236566924,7.05069449,141.83,141.82,9.04]
[1763236567627,9.96304502,141.83,141.82,9.04]
[1763236570329,2.91235053,141.83,141.82,9.04]
[1763236578837,9.96304502,141.83,141.82,9.04]
[1763236582240,9.96304502,141.83,141.82,9.07]
[1763236583527,2.91235053,141.83,141.82,9.07]
[1763236586822,9.96304502,141.83,141.82,9.07]
[1763236587920,2.91235053,141.83,141.82,9.07]
[1763236589147,111.2504023,141.84,141.82,9.07]
[1763236589445,2.91235053,141.83,141.82,8.36]
[1763236590449,2.91235053,141.83,141.82,9.07]
[1763236591032,2.91235053,141.85,141.82,109.07]
[1763236591243,2.91235053,141.85,141.83,0.71]
[1763236591452,2.91235053,141.85,141.84,8.36]
[1763236591948,2.91235053,141.85,141.84,9.07]
[1763236600455,9.96205091,141.85,141.84,8.36]
[1763236601558,12.97440144,141.85,141.84,8.36]
[1763236603044,10.06205091,141.85,141.84,8.36]
[1763236603858,9.96205091,141.85,141.84,8.36]
[1763236615868,7.04970038,141.85,141.84,9.02]
[1763236616049,9.96205091,141.85,141.84,9.02]
[1763236617459,2.91235053,141.85,141.84,9.02]
[1763236617682,2.91235053,141.86,141.84,9.02]
[1763236617848,2.91235053,141.86,141.85,0.66]
[1763236620452,2.91235053,141.87,141.85,0.66]
[1763236620657,2.91235053,141.87,141.85,7.70968646]
[1763236621071,2.91235053,141.89,141.85,7.70968646]
[1763236621373,2.91235053,141.88,141.86,0.66]
[1763236621573,2.91235053,141.88,141.87,8.36]
[1763236622168,2.91235053,141.88,141.87,9.02]
[1763236622879,1.86235765,141.88,141.87,9.02]
[1763236627757,106.06235765,141.9,141.87,9.02]
[1763236628077,106.06235765,141.9,141.88,0.66]
[1763236628253,106.06235765,141.9,141.89,8.36]
[1763236628669,106.06235765,141.9,141.89,9.02]
[1763236634286,1.86235765,141.91,141.89,9.02]
[1763236634483,1.86235765,141.91,141.9,0.68]
[1763236640893,8.9090774,141.91,141.9,0.68]
[1763236644297,1.86235765,141.91,141.9,0.68]
[1763236655011,9.0090774,141.91,141.86,50.0]
[1763236655226,1.86235765,141.88,141.87,9.02]
[1763236656523,7.04793475,141.89,141.87,9.02]
[1763236656827,1.86235765,141.88,141.87,9.02]
[1763236660520,7.04793475,141.89,141.87,9.02]
[1763236660728,1.86235765,141.88,141.87,9.02]
[1763236663999,1.86235765,141.88,141.87,8.34]
[1763236666625,128.86351912,141.91,141.87,8.34]
[1763236666815,1.86235765,141.88,141.87,8.34]
[1763236669430,1.86235765,141.89,141.87,8.34]
[1763236669732,1.86235765,141.89,141.88,0.67]
[1763236670530,1.86235765,141.89,141.87,15.38852178]
[1763236670708,1.86235765,141.89,141.87,16.05852178]
[1763236677117,1.86235765,141.89,141.87,15.38852178]
[1763236677320,1.86235765,141.9,141.88,0.67]
[1763236677520,1.86235765,141.9,141.89,8.34]
[1763236680624,104.2,141.91,141.89,8.34]
[1763236680831,1.86235765,141.9,141.89,9.01]
[1763236682226,1.86235765,141.9,141.89,8.34]
[1763236682425,7.04771301,141.89,141.83,50.0]
[1763236682769,7.04771301,141.89,141.84,8.34]
[1763236682770,1.86235765,141.86,141.84,8.34]
[1763236683240,7.04771301,141.89,141.85,0.67]
[1763236683546,1.86235765,141.86,141.85,0.67]
[1763236683741,1.86235765,141.86,141.85,9.01]
[1763236684848,2.91060221,141.86,141.85,9.01]
[1763236686644,41.6970661,141.9,141.85,16.05969533]
[1763236686645,21.16775445,141.9,141.85,16.05969533]
[1763236686843,2.91060221,141.89,141.86,50.67]
[1763236687020,2.91060221,141.89,141.87,8.34]
[1763236687223,2.91060221,141.89,141.87,9.01]
[1763236687446,2.91060221,141.89,141.88,0.67]
[1763236690132,2.91060221,141.9,141.88,0.67]
[1763236690459,2.91060221,141.9,141.89,8.34]
[1763236690634,2.91060221,141.9,141.89,9.01]
[1763236691254,2.91060221,141.91,141.89,9.01]
[1763236692939,2.91060221,141.91,141.9,0.72]
[1763236695054,9.95732196,141.91,141.9,0.72]
[1763236697131,7.04622322,141.92,141.9,0.72]
[1763236697332,7.04622322,141.92,141.91,8.34]
[1763236697660,9.95682543,141.92,141.91,8.34]
[1763236713679,9.95682543,141.92,141.91,9.01]
[1763236713853,9.95682543,141.92,141.91,8.34]
[1763236719184,9.95682543,141.92,141.91,9.01]
[1763236731014,27.57238349,141.92,141.86,50.0]
[1763236731164,22.6512,141.87,141.84,9.03]
[1763236731362,2.91060221,141.85,141.84,0.69]
[1763236731677,22.6512,141.87,141.84,8.34]
[1763236731883,2.91060221,141.85,141.84,8.34]
[1763236732110,22.6512,141.87,141.85,0.69]
[1763236732271,2.91060221,141.86,141.85,0.69]
[1763236733076,9.95980565,141.86,141.85,0.69]
[1763236743104,9.95980565,141.86,141.84,8.34]
[1763236743317,5.82120442,141.85,141.84,8.34]
[1763236743606,110.02120442,141.85,141.81,0.69]
[1763236743900,2.91060221,141.82,141.81,0.69]
[1763236744077,2.91060221,141.82,141.81,9.03]
[1763236744902,8.91538723,141.82,141.81,9.03]
[1763236749792,8.91538723,141.82,141.81,8.34]
[1763236750313,8.91538723,141.82,141.81,9.03]
[1763236766016,1.86419558,141.82,141.81,9.03]
[1763236767099,8.91538723,141.82,141.81,9.03]
[1763236789631,104.2,141.85,141.81,9.03]
[1763236789823,1.86419558,141.82,141.81,8.34]
[1763236790215,1.86419558,141.82,141.81,9.04]
[1763236800642,7.0501974,141.84,141.81,9.04]
[1763236800848,1.86419558,141.82,141.81,8.34]
[1763236801066,8.91439298,141.84,141.81,15.39168887]
[1763236801236,8.91439298,141.84,141.82,0.7]
[1763236801436,7.0501974,141.84,141.83,8.34]
[1763236801638,8.91439298,141.84,141.83,8.34]
[1763236801836,8.91439298,141.84,141.83,9.04]
[1763236803256,1.86419558,141.84,141.83,9.04]
[1763236804856,2.91147753,141.84,141.83,9.04]
[1763236820273,7.04977612,141.85,141.83,9.04]
[1763236820459,2.91147753,141.84,141.83,8.34]
[1763236822943,9.96167493,141.84,141.83,8.34]
[1763236823148,9.96167493,141.84,141.83,9.05]